[Event "98th Argentine Championship 2023"]
[Site "Buenos Aires"]
[Date "2023.11.04"]
[Round "7.3"]
[White "Krysa, Leandro"]
[Black "Tokman, Ariel"]
[Result "1-0"]
[ECO "D38"]
[WhiteElo "2546"]
[BlackElo "2306"]
[Annotator "TA"]
[PlyCount "63"]
[EventDate "2023.10.27"]
[EventType "tourn"]
[EventCountry "ARG"]
[SourceTitle "playchess.com"]
[Source "ChessBase"]
[SourceQuality "1"]
[TimeControl "40/5400+30:1800+30"]

{[%evp 12,63,46,22,32,27,51,47,49,38,51,43,101,110,106,108,110,107,112,117,114,109,105,70,188,188,193,197,190,191,205,199,208,159,241,228,243,234,263,251,367,319,326,322,299,283,346,313,360,360,353,346,447,430]} 1. d4 {[%emt 0:00:06]} d5 {[%emt 0:00:28]} 2. c4 {[%emt 0:00:25]} e6 {[%emt 0:00:04]} 3. Nf3 {[%emt 0:01:00]} Nf6 {[%emt 0:00:07]} 4. Nc3 {[%emt 0:00:11]} Bb4 {[%emt 0:00:15]} 5. cxd5 {[%emt 0:00:34]} exd5 {[%emt 0:00:08]} 6. Bg5 {[%emt 0:00:10]} Qd6 {[%emt 0:00:26]} 7. Nd2 {[%emt 0:01:15]} (7. e3 {is interesting.} Ne4 8. Bf4 Qe7 9. Qb3) 7... c6 {[%emt 0:06:26] D38: Queen's Gambit Declined: Ragozin Defence (4 Nf3 Bb4).} 8. e3 {[%emt 0:09:10]} Nbd7 {[%emt 0:00:50]} 9. Bd3 {[%emt 0:06:11]} O-O {[%emt 0:00:48] White is slightly better.} 10. O-O {[%emt 0:02:46] [#]} h6 $146 {[%emt 0:21:09]} ({Predecessor:} 10... Re8 11. h3 Nf8 12. Bf4 Qe7 13. Qc2 Ng6 14. Bh2 Bd6 15. Rae1 Bd7 16. f4 c5 {1-0 Girya,O (2465)-Zhai,M (2304) CHN-RUS Summit (Women) blitz 11th 2018 (1.5)}) 11. Bh4 {[%emt 0:02:32]} Nb6 {[%emt 0:08:28]} (11... Qc7 $14) 12. a3 $16 {[%emt 0:01:34][%cal Ba2a3,Ba3a4,Ba4a5][%mdl 32]} Bxc3 {[%emt 0:00:10]} 13. bxc3 {[%emt 0:00:05]} ({Much less strong is} 13. Bg3 Qe7 14. bxc3 Bg4 $14) 13... Re8 {[%emt 0:00:39]} 14. a4 {[%emt 0:11:14]} Ne4 {[%emt 0:02:46]} 15. Bxe4 {[%emt 0:03:35]} dxe4 {[%emt 0:00:24]} 16. a5 {[%emt 0:01:04]} Nd5 {[%emt 0:02:44]} 17. c4 {[%emt 0:04:52] Strongly threatening Bg3.} Nb4 {[%emt 0:14:08] [#]} ({Black should play} 17... Nc3 $14 18. Qc2 Ne2+ 19. Kh1 Qg6) 18. Qb1 $1 $36 {[%emt 0:05:03][%mdl 2048] aiming for c5. Keeping Black busy.} Nd3 {[%emt 0:01:16] [#]} 19. Nxe4 $1 {[%emt 0:03:07][%mdl 512]} Rxe4 {[%emt 0:01:34]} 20. Bg3 {[%emt 0:00:09]} (20. Qxd3 $2 {too greedy.} Rxh4 21. f4 Bg4 $19) 20... Qe7 {[%emt 0:12:55]} 21. Qxd3 {[%emt 0:00:27]} h5 {[%emt 0:01:10] Black is weak on the dark squares} 22. h3 {[%emt 0:08:53][%cal Bh2h3,Bh3h4][%mdl 32]} Re6 {[%emt 0:05:23]} (22... Bf5 $16 23. Qb3 Re8) 23. d5 {[%emt 0:06:22]} Rg6 {[%emt 0:00:50]} 24. h4 {[%emt 0:03:23]} Qc5 {[%emt 0:05:12]} 25. Kh2 {[%emt 0:04:51]} b5 {[%emt 0:03:01]} (25... f5 {might work better.} 26. Bf4 Rf6) 26. cxb5 {[%emt 0:05:49]} Qxb5 {[%emt 0:02:37]} 27. Qxb5 {[%emt 0:00:53]} cxb5 {[%emt 0:00:02]} 28. e4 {[%emt 0:00:48]} Bd7 {[%emt 0:02:56]} 29. Rfc1 {[%emt 0:01:56] And now Rc7 would win.} Ra6 {[%emt 0:00:21]} 30. Rc7 {[%emt 0:02:18]} Rd8 {[%emt 0:00:10]} 31. f3 {[%emt 0:01:04]} f6 {[%emt 0:00:53]} 32. Bf2 {[%emt 0:00:48] Weighted Error Value: White=0.09 (flawless) /Black=0.34} 1-0

[Event "98th Argentine Championship 2023"]
[Site "Buenos Aires"]
[Date "2023.11.05"]
[Round "8.1"]
[White "Tristan, Leonardo"]
[Black "Peralta, Fernando"]
[Result "1-0"]
[ECO "D02"]
[WhiteElo "2523"]
[BlackElo "2580"]
[Annotator "TA"]
[PlyCount "55"]
[EventDate "2023.10.27"]
[EventType "tourn"]
[EventCountry "ARG"]
[SourceTitle "playchess.com"]
[Source "ChessBase"]
[SourceQuality "1"]
[TimeControl "40/5400+30:1800+30"]

{[%evp 11,55,10,6,8,7,-2,-1,-40,0,-6,0,-5,29,-8,20,0,11,-14,101,0,304,309,527,518,704,717,709,686,1047,548,533,533,509,508,866,862,1093,1067,29992,5485,29993,29994,29994,29995,29995,29996]} 1. d4 {[%emt 0:00:05]} Nf6 {[%emt 0:00:09]} 2. Nf3 {[%emt 0:00:10]} e6 {[%emt 0:00:38]} 3. Bf4 {[%emt 0:00:07]} d5 {[%emt 0:00:43]} 4. e3 {[%emt 0:01:09]} c5 {[%emt 0:00:05]} 5. c3 {[%emt 0:00:14]} Nc6 {[%emt 0:00:10]} 6. Nbd2 {[%emt 0:00:10]} Nh5 {[%emt 0:00:26] 6...Be7 is a critical line.} 7. Bg5 {[%emt 0:00:07] D02: 1 d4 d5 2 Nf3 sidelines, including 2...Nf6 3 g3 and 2...Nf6 3 Bf4.} f6 {[%emt 1:31:49] [#]} 8. Ne5 $1 {[%mdl 64] Discovered Attack} g6 {[%emt 0:00:00][%cal Oc6e5] White must now prevent ...Nxe5!} 9. g4 {[%emt 0:00:08] The position is equal.} Ng7 {[%emt 0:00:00][%cal Oc6e5] Strongly threatening ...Nxe5!} 10. Nxc6 {[%emt 0:00:10]} bxc6 {[%emt 0:00:00] [#]} 11. Bh6 $5 $146 {[%emt 0:00:02][%mdl 8] White puts up resistance An interesting novelty.} ({Predecessor:} 11. Bf4 cxd4 12. exd4 Bd6 13. Qf3 O-O 14. Bxd6 Qxd6 15. O-O-O e5 16. Qg3 Qb8 17. f3 {½-½ McQuillan,S (1936)-Rutherford,W (1959) Ayr op 2018 (3)}) 11... Qb6 {[%emt 0:00:00]} 12. Qc2 {[%emt 0:03:46]} (12. dxc5 {is more complex.} Qxb2 13. c4 f5 14. Rb1) 12... e5 {[%emt 0:00:00]} 13. dxe5 {[%emt 0:06:10]} fxe5 {[%emt 0:00:00]} 14. Bd3 {[%emt 0:00:25][%cal Od3g6]} e4 {[%emt 0:00:00] [#]} (14... Ne6 $11 15. Bxf8 Nxf8) 15. Nxe4 {[%emt 0:01:32]} ({Only move:} 15. Bxe4 $1 $16 dxe4 16. Qxe4+ (16. Nc4 Qc7 $11) 16... Ne6 17. Nc4) 15... dxe4 {[%emt 0:00:00][%mdl 8192]} (15... Ne6 $11 16. Bxf8 (16. Nf6+ Kf7 $11) 16... Rxf8) 16. Bc4 $18 {[%emt 0:00:04]} Ne6 $2 {[%emt 0:00:00] [#]} (16... Bxg4 $2 17. Qxe4+ Be7 18. Bxg7 $18 (18. Qxg4 Nf5 $18)) (16... Be6 {was worth a try.}) 17. Qxe4 $1 {[%emt 0:11:00]} Kf7 {[%emt 0:00:00]} (17... Qxb2 18. O-O) 18. Qf4+ {[%emt 0:02:26]} Ke8 {[%emt 0:00:00]} 19. Qe5 {[%emt 0:09:30]} Kf7 {[%emt 0:00:00]} 20. Bxe6+ {[%emt 0:08:10]} Bxe6 {[%emt 0:00:00]} 21. Qxh8 {[%emt 0:00:04]} Bxh6 {[%emt 0:00:39]} 22. Qxa8 {[%emt 0:00:59] 0-0-0 is the strong threat.} Qa6 {[%emt 0:03:50]} (22... Bxg4 $142 23. O-O Bf8) 23. O-O-O {[%emt 0:02:53][%cal Be1c1,Bc1c2,Bc2d2][%mdl 32]} Qxa2 {[%emt 0:01:01]} 24. Qb7+ {[%emt 0:00:03]} Kg8 {[%emt 0:01:01]} 25. Rd8+ {[%emt 0:01:34]} Bf8 {[%emt 0:00:05]} 26. Qe7 {[%emt 0:00:20][%csl Ge7][%cal Rd8f8] White mates.} Qa1+ {[%emt 0:00:24]} 27. Kc2 {[%emt 0:00:03][%csl Ge7][%cal Rd8f8]} Qa4+ {[%emt 0:00:11]} 28. Kd2 {[%emt 0:00:06] An entertaining game by Tristan.   Weighted Error Value: White=0.58/Black=1.14} 1-0

[Event "98th Argentine Championship 2023"]
[Site "Buenos Aires"]
[Date "2023.11.05"]
[Round "8.5"]
[White "Silva, Luca"]
[Black "Krysa, Leandro"]
[Result "0-1"]
[ECO "D24"]
[WhiteElo "2287"]
[BlackElo "2546"]
[Annotator "TA"]
[PlyCount "72"]
[EventDate "2023.10.27"]
[EventType "tourn"]
[EventCountry "ARG"]
[SourceTitle "playchess.com"]
[Source "ChessBase"]
[SourceQuality "1"]
[TimeControl "40/5400+30:1800+30"]

{[%evp 9,71,8,51,9,18,0,0,8,0,0,1,0,0,9,10,0,0,-5,0,0,0,-14,-8,-8,-6,-4,-10,-6,-8,-9,-8,-8,-13,-6,-11,-12,0,0,0,0,0,0,0,0,0,0,0,-16,0,0,0,0,0,0,0,0,0,0,0,0,0,-12833,-12829,-29999]} 1. d4 {[%emt 0:05:11]} Nf6 {[%emt 0:00:23]} 2. c4 {[%emt 0:00:04]} e6 {[%emt 0:00:26]} 3. Nf3 {[%emt 0:00:05]} d5 {[%emt 0:00:24]} 4. Nc3 {[%emt 0:00:03]} dxc4 {[%emt 0:01:57]} 5. e4 {[%emt 0:00:28]} b5 {[%emt 0:00:34][%mdl 64] [#] Deflection} 6. Nxb5 {[%emt 0:00:34] White wants to play Qa4. D24: Queen's Gambit Accepted: 3 Nf3 Nf6 4 Nc3.} (6. e5 $5 {[%cal Re5f6]} Nd5 7. Nxb5 $14) 6... Nxe4 {[%emt 0:00:34]} 7. Qa4 {[%emt 0:00:14] Prevents Bb4+.} c6 {[%emt 0:02:46]} 8. Nc3 {[%emt 0:00:07] The position is equal.} (8. Nxa7 $2 {loses.} Bb7 9. Bxc4 Qb6 $19) 8... Nxc3 {[%emt 0:01:07]} 9. bxc3 {[%emt 0:00:05]} Ba6 {[%emt 0:00:21]} 10. Bxc4 {[%emt 0:00:38]} Bxc4 {[%emt 0:01:30]} 11. Qxc4 {[%emt 0:00:04] [#]} Qc7 $146 {[%emt 0:05:46]} ({Predecessor:} 11... Bd6 12. O-O O-O 13. Rb1 Qc7 14. Qd3 Nd7 15. c4 c5 16. d5 exd5 17. Qxd5 Nb6 {½-½ Carlsen,M (2847)-Nepomniachtchi,I (2789) Carlsen Inv KO rapid 2021 (2.11)}) 12. Ne5 {[%emt 0:12:37]} Bd6 {[%emt 0:02:15]} 13. Bf4 {[%emt 0:02:27]} O-O {[%emt 0:04:42]} 14. O-O {[%emt 0:02:45]} c5 {[%emt 0:05:45]} 15. Rad1 {[%emt 0:23:30]} Nc6 {[%emt 0:06:57][%cal Rc6e5]} 16. Rfe1 {[%emt 0:09:21]} (16. dxc5 $2 {perishes.} Nxe5 17. Bxe5 Bxe5 $19) 16... Rac8 {[%emt 0:02:36]} 17. g3 {[%emt 0:06:23][%cal Oe5d7]} cxd4 {[%emt 0:06:47][%cal Rc6e5]} 18. Qxc6 {[%emt 0:08:15]} Bxe5 {[%emt 0:18:34]} 19. Qxc7 {[%emt 0:00:04]} Bxc7 {[%emt 0:00:04]} 20. Bxc7 {[%emt 0:00:21]} Rxc7 {[%emt 0:00:06]} 21. cxd4 $11 {[%emt 0:00:14][%mdl 4096] Endgame KRR-KRR} Rd8 {[%emt 0:00:34]} 22. Re5 {[%emt 0:02:13]} Kf8 {[%emt 0:08:27]} 23. Ra5 {[%emt 0:01:44]} Rd6 {[%emt 0:05:16]} 24. Rd3 {[%emt 0:01:59]} a6 {[%emt 0:05:24]} 25. Kg2 {[%emt 0:05:02]} Ke7 {[%emt 0:02:33]} 26. Kf3 {[%emt 0:00:06]} Kf6 {[%emt 0:03:50]} 27. Ke3 {[%emt 0:03:16]} g5 {[%emt 0:01:18]} 28. h4 {[%emt 0:02:26]} h6 {[%emt 0:00:38]} 29. hxg5+ {[%emt 0:01:15]} hxg5 {[%emt 0:00:05]} 30. d5 {[%emt 0:04:56]} Rcd7 {[%emt 0:07:44]} 31. Ke4 {[%emt 0:01:36]} Kg6 {[%emt 0:02:40]} 32. g4 {[%emt 0:00:58]} Rb7 {[%emt 0:01:30]} 33. f3 {[%emt 0:03:03]} Rb2 {[%emt 0:01:02]} 34. Rda3 {[%emt 0:02:06]} exd5+ {[%emt 0:00:50]} 35. Rxd5 $2 {[%emt 0:01:16][%mdl 8192] [#]} (35. Ke5 $11 Rbb6 36. Kd4) 35... Rb4+ $19 {[%emt 0:00:10]} 36. Ke5 {[%emt 0:00:06]} Re6# {[%emt 0:02:55] Weighted Error Value: White=0.50/Black=0.04 (flawless)} 0-1

[Event "98th Argentine Championship 2023"]
[Site "Buenos Aires"]
[Date "2023.11.06"]
[Round "9.1"]
[White "Peralta, Fernando"]
[Black "Acosta, Pablo Ismael"]
[Result "1/2-1/2"]
[ECO "D36"]
[WhiteElo "2580"]
[BlackElo "2482"]
[Annotator "TA"]
[PlyCount "134"]
[EventDate "2023.10.27"]
[EventType "tourn"]
[EventCountry "ARG"]
[SourceTitle "playchess.com"]
[Source "ChessBase"]
[SourceQuality "1"]
[TimeControl "40/5400+30:1800+30"]

{[%evp 21,134,20,12,12,28,18,58,56,65,64,53,39,33,37,24,30,29,29,95,90,102,95,86,94,97,94,96,90,89,78,114,102,118,19,19,20,26,21,71,64,70,70,72,75,61,49,51,76,79,67,100,0,0,0,72,5,9,23,52,9,9,0,0,0,0,0,0,0,2,0,0,0,0,0,0,0,0,0,0,0,0,0,0,0,0,0,0,0,0,0,0,0,0,0,0,0,0,0,0,0,0,0,0,0,0,0,0,0,0,0,0,0,0,0,0]} 1. d4 {[%emt 0:00:03]} d5 {[%emt 0:05:11]} 2. c4 {[%emt 0:00:05]} e6 {[%emt 0:00:05]} 3. Nc3 {[%emt 0:00:05]} Nf6 {[%emt 0:00:04]} 4. cxd5 {[%emt 0:00:15]} exd5 {[%emt 0:00:13]} 5. Bg5 {[%emt 0:00:08]} c6 {[%emt 0:00:12]} 6. Qc2 {[%emt 0:01:37]} Be7 {[%emt 0:01:31]} 7. e3 {[%emt 0:00:06]} Nbd7 {[%emt 0:01:28]} 8. Bd3 {[%emt 0:00:08]} h6 {[%emt 0:00:05]} 9. Bh4 {[%emt 0:00:51]} Nh5 {[%emt 0:00:07]} 10. Bxe7 {[%emt 0:00:14]} Qxe7 {[%emt 0:00:07]} 11. Nge2 {[%emt 0:00:30]} Nb6 {[%emt 0:03:35]} 12. O-O {[%emt 0:00:20] 12.0-0-0 is the modern continuation. D36: Queen's Gambit Declined: Exchange Variation: Main line (5 Bg5 c6 6 Qc2).} O-O {[%emt 0:00:07]} 13. Rae1 {[%emt 0:00:11]} f5 {[%emt 0:12:27] [#]} 14. Nb1 $146 {[%emt 0:06:32][%cal Bc3b1,Bb1d2,Bd2f3,Bf3h4][%mdl 32] White is slightly better.} ({Predecessor:} 14. Nf4 Nxf4 15. exf4 Qf6 16. Re5 Be6 17. Rfe1 Rae8 18. Na4 Nd7 19. R5e3 g6 20. Nc5 Nxc5 21. Qxc5 {1-0 Maiti,M (2068)-Mohota,N (2195) Titled Tuesday intern op 7th July blitz 2020 (9)}) 14... Qf6 {[%emt 0:08:11]} 15. Nd2 {[%emt 0:01:38]} f4 {[%emt 0:01:48]} 16. exf4 {[%emt 0:20:36]} Nxf4 {[%emt 0:02:10]} 17. Nxf4 {[%emt 0:01:35]} Qxf4 {[%emt 0:00:05]} 18. Bh7+ {[%emt 0:00:33]} (18. Nf3 {simplifies} Bf5 19. b3 Bxd3 20. Qxd3 Qf5 21. Qc3) 18... Kh8 {[%emt 0:00:27]} 19. Nf3 {[%emt 0:00:06]} Bf5 {[%emt 0:11:37]} (19... Nc4 $11) 20. Bxf5 $16 {[%emt 0:00:13]} Qxf5 {[%emt 0:00:04]} 21. Qxf5 {[%emt 0:02:57]} Rxf5 {[%emt 0:00:08] [#]} 22. Re7 $1 {[%emt 0:00:15]} Rb8 {[%emt 0:01:10]} 23. Nh4 {[%emt 0:23:59]} Rf6 {[%emt 0:01:12]} 24. b3 {[%emt 0:00:39] Prevents Nc4} Kg8 {[%emt 0:00:38]} 25. Rfe1 {[%emt 0:03:35]} Rf7 {[%emt 0:20:54]} 26. Ng6 {[%emt 0:03:21] White is more active.} Nd7 {[%emt 0:05:17]} 27. Rxf7 {[%emt 0:19:03]} (27. h4 $16) 27... Kxf7 $11 {[%emt 0:00:06]} 28. Re7+ {[%emt 0:00:01]} Kxg6 {[%emt 0:00:09]} 29. Rxd7 {[%emt 0:00:02][%mdl 4096] Endgame KR-KR} Re8 {[%emt 0:10:44]} (29... h5 $11 {remains equal.}) 30. Kf1 $16 {[%emt 0:00:32]} Re4 {[%emt 0:00:34]} 31. Rxb7 {[%emt 0:00:10]} Rxd4 {[%emt 0:00:08]} 32. Ke2 {[%emt 0:05:16][%cal Ob7c7]} Re4+ {[%emt 0:04:55]} 33. Kd3 {[%emt 0:01:28]} Rf4 {[%emt 0:02:17]} 34. f3 {[%emt 0:01:42]} Rf7 {[%emt 0:01:21] [#]} 35. Rb8 {[%emt 0:00:31]} Rc7 {[%emt 0:04:14] Prevents Rc8.} 36. Rd8 {[%emt 0:05:59]} (36. Kd4 $16) 36... Kf7 $11 {[%emt 0:01:17]} 37. Kd4 {[%emt 0:02:45]} Re7 {[%emt 0:00:24]} (37... Ke7 $1 $11 38. Ra8 Rb7) 38. Ra8 {[%emt 0:00:53]} (38. Rc8 $16) 38... Re2 $1 {[%emt 0:00:40]} 39. Rxa7+ {[%emt 0:00:05]} Kf6 {[%emt 0:01:06]} 40. g3 {[%emt 0:00:00]} Rxh2 {[%emt 0:00:00] The position is equal.} 41. a4 {[%emt 0:06:52]} Rd2+ $1 {[%emt 0:02:52]} 42. Ke3 {[%emt 0:03:28]} Rb2 {[%emt 0:02:45]} 43. Rb7 {[%emt 0:00:48]} Ke5 {[%emt 0:04:44]} 44. a5 {[%emt 0:02:20] f4+ would be deadly.} Ra2 {[%emt 0:00:32]} 45. Rxg7 {[%emt 0:05:22] And now f4+ would win.} Rxa5 {[%emt 0:02:18]} 46. f4+ {[%emt 0:02:02]} Kf6 {[%emt 0:07:33]} 47. Rh7 {[%emt 0:01:26]} Kg6 {[%emt 0:07:58]} 48. Rc7 {[%emt 0:00:07]} Ra6 {[%emt 0:03:50]} 49. g4 {[%emt 0:09:39] Strongly threatening f5+.} Rb6 {[%emt 0:00:38]} 50. b4 {[%emt 0:00:13]} Kf6 {[%emt 0:02:15]} 51. Kf3 {[%emt 0:00:57]} Rxb4 {[%emt 0:01:48]} 52. Rxc6+ {[%emt 0:00:04]} Kg7 {[%emt 0:00:03]} 53. f5 {[%emt 0:02:55]} Rd4 {[%emt 0:00:36]} 54. Rg6+ {[%emt 0:01:20]} Kh7 {[%emt 0:00:02]} 55. Rd6 {[%emt 0:00:10]} Kg7 {[%emt 0:01:28]} 56. Rd7+ {[%emt 0:01:06]} Kg8 {[%emt 0:00:11]} 57. Rd8+ {[%emt 0:00:11]} Kg7 {[%emt 0:00:04]} 58. Rd7+ {[%emt 0:00:02]} (58. Rd6 Rd3+ 59. Kf4 Rd4+ 60. Kg3 Rd3+ 61. Kf4 Rd4+ 62. Kg3 Rd3+ 63. Kh4 Rd1) 58... Kg8 {[%emt 0:00:05]} 59. Kg3 {[%emt 0:01:06] Kh4 is the strong threat.} Rd1 {[%emt 0:00:18]} 60. Kf4 {[%emt 0:00:48]} Rd4+ {[%emt 0:00:12]} 61. Ke5 {[%emt 0:00:31]} Rxg4 {[%emt 0:00:19]} 62. Kf6 {[%emt 0:00:24]} d4 {[%emt 0:00:34]} 63. Rd8+ {[%emt 0:00:15]} Kh7 {[%emt 0:00:05]} 64. Rd7+ {[%emt 0:00:04]} Kg8 {[%emt 0:00:03]} 65. Rd8+ {[%emt 0:00:36]} Kh7 {[%emt 0:00:04]} 66. Rd7+ {[%emt 0:01:09]} Kg8 {[%emt 0:00:05]} 67. Ke6 {[%emt 0:00:16] aiming for Rd8+.} Re4+ {[%emt 0:00:25] Weighted Error Value: White=0.10 (very precise) /Black=0.09 (flawless)} 1/2-1/2

[Event "98th Argentine Championship 2023"]
[Site "Buenos Aires"]
[Date "2023.11.06"]
[Round "9.3"]
[White "Krysa, Leandro"]
[Black "Villca, Julian"]
[Result "1/2-1/2"]
[ECO "E06"]
[WhiteElo "2546"]
[BlackElo "2383"]
[Annotator "TA"]
[PlyCount "92"]
[EventDate "2023.10.27"]
[EventType "tourn"]
[EventCountry "ARG"]
[SourceTitle "playchess.com"]
[Source "ChessBase"]
[SourceQuality "1"]
[TimeControl "40/5400+30:1800+30"]

{[%evp 12,92,24,10,32,0,0,0,0,0,20,0,8,0,49,50,64,43,65,17,64,57,57,57,58,44,53,37,80,83,105,101,96,102,100,104,174,106,148,151,157,158,145,154,156,114,110,0,166,166,146,107,101,72,70,71,70,39,46,32,41,8,86,0,0,0,0,0,0,0,0,0,0,0,0,0,0,0,0,0,0,0,0]} 1. d4 {[%emt 0:00:10]} d5 {[%emt 0:00:16]} 2. c4 {[%emt 0:00:18]} e6 {[%emt 0:00:06]} 3. Nf3 {[%emt 0:00:20]} Nf6 {[%emt 0:00:09]} 4. g3 {[%emt 0:00:19]} c6 {[%emt 0:00:07]} 5. Bg2 {[%emt 0:01:50]} Be7 {[%emt 0:00:53]} 6. O-O {[%emt 0:00:41]} O-O {[%emt 0:00:06]} 7. Nc3 {[%emt 0:00:10]} a5 {[%emt 0:00:12] E06: Closed Catalan: Early deviations.} 8. Ne5 {[%emt 0:08:45]} Nfd7 {[%emt 0:15:28]} 9. Be3 $1 {[%emt 0:03:56][%mdl 4] now scores much better than the old 9.Nxd7.} b6 {[%emt 0:07:42]} 10. f4 {[%emt 0:11:01][%cal Rc4d5]} Nxe5 {[%emt 0:12:39]} 11. dxe5 {[%emt 0:00:21][%cal Rc4d5]} Nd7 {[%emt 0:00:44] [#]} 12. cxd5 $146 {[%emt 0:15:58]} ({Predecessor:} 12. Rc1 Ba6 13. cxd5 cxd5 14. Bd4 Rc8 15. Rf2 Nc5 16. f5 exf5 17. Nxd5 Bb7 18. Nxe7+ Qxe7 19. Bxc5 bxc5 {½-½ Navara,D (2688)-Bluebaum,M (2670) POL-chT Ekstraliga 2023 (1.3)}) 12... exd5 {[%emt 0:06:18]} (12... cxd5 $11 13. Qd2 Bb7) 13. Qc2 $14 {[%emt 0:03:35]} Bc5 {[%emt 0:07:22]} 14. Bxc5 {[%emt 0:05:43]} Nxc5 {[%emt 0:00:03]} 15. Rfd1 {[%emt 0:05:15]} (15. Rad1 $14 {feels stronger.}) 15... Kh8 {[%emt 0:15:48]} (15... Bg4 $11 {is superior.}) 16. Na4 {[%emt 0:08:59]} Nxa4 {[%emt 0:01:21]} 17. Qxa4 {[%emt 0:00:49]} Bd7 {[%emt 0:02:13]} 18. Qd4 {[%emt 0:04:09]} Bg4 {[%emt 0:11:06]} 19. Rac1 {[%emt 0:07:49]} Rc8 {[%emt 0:01:21]} 20. Rd2 {[%emt 0:03:27]} Be6 {[%emt 0:02:30]} 21. Qf2 $1 {[%emt 0:01:30]} f5 {[%emt 0:00:39]} 22. exf6 {[%emt 0:01:08]} Rxf6 {[%emt 0:00:14]} 23. e4 {[%emt 0:00:24][%cal Be2e4,Be4e5][%mdl 32]} Bg8 {[%emt 0:00:25]} (23... Rf8 $16 24. Rcd1 Qc7) 24. Bh3 {[%emt 0:10:31]} ({White should try} 24. e5 $18 Rh6 25. f5) 24... Rb8 {[%emt 0:01:32]} 25. e5 {[%emt 0:00:17]} Rh6 {[%emt 0:00:08]} 26. Bg2 {[%emt 0:00:25] White is much more active.} Qe7 {[%emt 0:02:25]} 27. Re1 {[%emt 0:00:41]} Re6 {[%emt 0:01:38]} 28. Bh3 {[%emt 0:00:34]} Rh6 {[%emt 0:00:02]} 29. Bg2 {[%emt 0:00:33]} (29. Bg4 $16) 29... Re6 $1 $18 {[%emt 0:00:02]} 30. Rde2 {[%emt 0:01:04]} g6 {[%emt 0:02:08]} 31. g4 {[%emt 0:00:24]} Rf8 {[%emt 0:00:49]} 32. Rf1 {[%emt 0:01:43]} ({Much worse is} 32. Qxb6 $6 Rxf4 33. Qxa5 Rxg4 $11) (32. f5 {is interesting.} Qg5 33. f6 Qxg4 34. a3) 32... Qb4 {[%emt 0:01:48]} 33. a3 {[%emt 0:00:33]} Qc4 {[%emt 0:00:54][%cal Of8f4]} 34. Qe3 {[%emt 0:02:24]} Re7 {[%emt 0:01:25]} 35. b3 {[%emt 0:00:16]} Qb5 {[%emt 0:01:06][%cal Od5d4]} 36. Rd2 {[%emt 0:00:55]} (36. Rc2 $5 {[%cal Re5e6]} Be6 37. a4 $14) 36... Be6 {[%emt 0:03:19] [#]} (36... Qc5 $1 $11 {remains equal.} 37. Rd4 Qxa3) 37. f5 {[%emt 0:01:03]} gxf5 $11 {[%emt 0:01:26] The position is equal.} 38. gxf5 {[%emt 0:00:53]} Rxf5 {[%emt 0:00:57]} 39. Rxf5 {[%emt 0:00:32]} Bxf5 {[%emt 0:00:11]} 40. Rf2 {[%emt 0:00:00]} Bg6 {[%emt 0:00:00] Threatens to win with ...Qc5.} (40... Qd3 $2 41. Qf4 $18) 41. Qg5 $36 {[%emt 0:28:48][%mdl 2048] Black is under pressure.} Qc5 {[%emt 0:17:53] White must now prevent ...Rf7.} 42. Qf6+ {[%emt 0:02:38]} Rg7 {[%emt 0:00:10]} 43. Qd8+ $1 {[%emt 0:00:23]} Rg8 {[%emt 0:00:05]} 44. Qf6+ {[%emt 0:00:04]} Rg7 {[%emt 0:00:02] Hoping for ...h5.} 45. Qd8+ $1 {[%emt 0:00:58]} Rg8 {[%emt 0:00:01]} 46. Qf6+ {[%emt 0:00:15]} Rg7 {[%emt 0:00:02] Black escapes into a draw.   Weighted Error Value: White=0.15 (very precise) /Black=0.13 (very precise)} 1/2-1/2